[Event "71st RUS-ch Superfinal Women 2021"]
[Site "Ufa"]
[Date "2021.10.09"]
[Round "1.6"]
[White "Bivol, Alina"]
[Black "Pogonina, Natalija"]
[Result "1/2-1/2"]
[ECO "C84"]
[WhiteElo "2392"]
[BlackElo "2467"]
[Annotator "ChessBase"]
[PlyCount "79"]
[EventDate "2021.10.09"]
[EventType "tourn"]
[EventCountry "RUS"]
[SourceTitle "playchess.com"]
[Source "ChessBase"]
[SourceQuality "1"]
[TimeControl "40/5400+30:1800+30"]

1. e4 {[%emt 0:00:07]} e5 {[%emt 0:00:05]} 2. Nf3 {[%emt 0:00:18]} Nc6 {
[%emt 0:00:05]} 3. Bb5 {[%emt 0:01:28]} a6 {[%emt 0:00:55]} 4. Ba4 {[%emt 0:00:
19]} Nf6 {[%emt 0:00:10]} 5. O-O {[%emt 0:00:51]} Be7 {[%emt 0:02:08]} 6. d3 {
[%emt 0:01:15]} b5 {[%emt 0:00:57]} 7. Bb3 {[%emt 0:00:08]} d6 {[%emt 0:00:22]}
8. a4 {[%emt 0:00:56]} Bd7 {[%emt 0:04:24]} 9. c3 {[%emt 0:00:14]} O-O {
[%emt 0:01:07]} 10. Bc2 {[%emt 0:03:16]} Re8 {[%emt 0:10:00]} 11. Re1 {[%emt 0:
00:57]} h6 {[%emt 0:03:34]} 12. h3 {[%emt 0:02:19]} Rb8 {[%emt 0:07:42]} 13.
Nbd2 {[%emt 0:04:50]} Bf8 {[%emt 0:02:19]} 14. Nf1 {[%emt 0:20:28]} b4 {
[%emt 0:08:06]} 15. d4 {[%emt 0:01:47]} bxc3 {[%emt 0:06:22]} 16. bxc3 {
[%emt 0:00:12]} exd4 {[%emt 0:00:27]} 17. cxd4 {[%emt 0:00:24]} Nb4 {[%emt 0:
02:31]} 18. Bb1 {[%emt 0:01:43]} c5 {[%emt 0:08:16]} 19. Bd2 {[%emt 0:14:38]}
cxd4 {[%emt 0:04:58]} 20. Nxd4 {[%emt 0:01:40]} Qb6 {[%emt 0:01:08]} 21. Nf3 {
[%emt 0:06:22]} d5 {[%emt 0:13:50]} 22. exd5 {[%emt 0:11:56]} Rxe1 {[%emt 0:01:
14]} 23. Bxe1 {[%emt 0:02:58]} Nbxd5 {[%emt 0:00:44]} 24. Ba2 {[%emt 0:00:50]}
Qd6 {[%emt 0:03:57]} 25. Ng3 {[%emt 0:04:17]} Nb4 {[%emt 0:02:49]} 26. Bb3 {
[%emt 0:03:10]} a5 {[%emt 0:06:29]} 27. Qxd6 {[%emt 0:02:34]} Bxd6 {[%emt 0:00:
05]} 28. Rd1 {[%emt 0:00:37]} Rb6 {[%emt 0:05:57]} 29. Nd4 {[%emt 0:00:47]} Bf8
{[%emt 0:01:08]} 30. Nf3 {[%emt 0:06:21]} Rd6 {[%emt 0:02:27]} 31. Ne5 {
[%emt 0:01:53]} Rxd1 {[%emt 0:00:19]} 32. Bxd1 {[%emt 0:00:17]} Be6 {[%emt 0:
00:37]} 33. Be2 {[%emt 0:00:22]} Nd7 {[%emt 0:01:06]} 34. Nc4 {[%emt 0:01:17]}
Nc5 {[%emt 0:00:32]} 35. Nxa5 {[%emt 0:00:39]} Nxa4 {[%emt 0:00:24]} 36. Bd2 {
[%emt 0:01:54]} Nd5 {[%emt 0:00:31]} 37. Nc6 {[%emt 0:01:05]} Nab6 {[%emt 0:00:
30]} 38. Nd4 {[%emt 0:00:31]} Bd7 {[%emt 0:00:24]} 39. Ne4 {[%emt 0:01:13]} Be7
{[%emt 0:00:30]} 40. g4 {[%emt 0:00:00]} 1/2-1/2

[Event "71st RUS-ch Superfinal Women 2021"]
[Site "Ufa"]
[Date "2021.10.10"]
[Round "2.1"]
[White "Ovod, Evgenija"]
[Black "Pogonina, Natalija"]
[Result "1-0"]
[ECO "C50"]
[WhiteElo "2331"]
[BlackElo "2467"]
[Annotator "RC"]
[PlyCount "143"]
[EventDate "2021.10.09"]
[EventType "tourn"]
[EventCountry "RUS"]
[SourceTitle "playchess.com"]
[Source "ChessBase"]
[SourceQuality "1"]
[TimeControl "40/5400+30:1800+30"]

1. e4 {[%emt 0:00:03]} e5 {[%emt 0:00:09]} 2. Nf3 {[%emt 0:00:06]} Nc6 {
[%emt 0:00:04]} 3. Bc4 {[%emt 0:00:06]} Nf6 {[%emt 0:00:57]} 4. d3 {[%emt 0:00:
07]} Bc5 {[%emt 0:01:14]} 5. O-O d6 {[%emt 0:00:33]} 6. c3 {[%emt 0:00:23]} a6
{[%emt 0:00:27]} 7. Bb3 {[%emt 0:00:07]} Ba7 {[%emt 0:04:10]} 8. Nbd2 {[%emt 0:
00:11]} O-O {[%emt 0:00:32]} 9. h3 {[%emt 0:00:16]} Be6 {[%emt 0:01:11]} 10.
Bc2 {[%emt 0:00:12]} d5 {[%emt 0:01:29]} 11. exd5 {[%emt 0:00:43]} Nxd5 {
[%emt 0:13:23]} 12. Re1 {[%emt 0:00:08]} Re8 {[%emt 0:00:07]} 13. Nf1 {[%emt 0:
00:42]} f6 14. Ng3 {[%emt 0:22:00]} Qd7 {[%emt 0:05:00]} 15. Nh2 {[%emt 0:05:
51]} Rad8 {[%emt 0:18:06]} 16. Qf3 {[%emt 0:00:47]} Nde7 {[%emt 0:09:47]} 17.
Be3 {[%emt 0:01:47]} Bd5 {[%emt 0:03:53]} 18. Qe2 {[%emt 0:02:10]} Bf7 {
[%emt 0:02:55]} 19. Ne4 {[%emt 0:15:55]} Nd5 {[%emt 0:00:28]} 20. Bxa7 {
[%emt 0:01:44]} Nxa7 {[%emt 0:02:24]} 21. Rad1 Nc6 22. Nc5 {[%emt 0:10:31]} Qc8
{[%emt 0:00:45]} 23. Qf3 b6 24. Ba4 {[%emt 0:03:18]} bxc5 {[%emt 0:05:28]} 25.
Bxc6 {[%emt 0:01:37]} Rf8 {[%emt 0:00:08]} 26. Ng4 {[%emt 0:06:05]} Qb8 {
[%emt 0:04:05]} 27. Qg3 {[%emt 0:09:59]} Kh8 {[%emt 0:00:39]} 28. Bxd5 {
[%emt 0:03:58]} Rxd5 {[%emt 0:05:29]} 29. Ne3 Rd7 30. b3 {[%emt 0:01:19]} Bg6 {
[%emt 0:06:43]} 31. Nc4 {[%emt 0:00:32]} Rfd8 {[%emt 0:00:25]} 32. Nb2 {
[%emt 0:02:12]} Qb6 {[%emt 0:01:46]} 33. Qe3 {[%emt 0:04:32]} Rd5 {[%emt 0:03:
34]} 34. Na4 {[%emt 0:07:20]} Qd6 {[%emt 0:03:49]} 35. c4 {[%emt 0:00:47]} Rd4
{[%emt 0:00:29]} 36. f3 {[%emt 0:00:09]} Kg8 {[%emt 0:02:24]} 37. Rd2 {[%emt 0:
01:25]} Be8 {[%emt 0:02:25]} 38. Nc3 {[%emt 0:01:22]} Bc6 {[%emt 0:02:51]} 39.
Ne2 {[%emt 0:00:51]} Rxd3 {[%emt 0:00:52]} 40. Rxd3 {[%emt 0:00:00]} Qxd3 {
[%emt 0:00:00]} 41. Qxc5 {[%emt 0:00:10]} Qd6 {[%emt 0:05:47]} 42. Qe3 {
[%emt 0:10:31]} Qd2 {[%emt 0:06:08]} 43. Nc3 {[%emt 0:00:27]} Kf7 {[%emt 0:02:
04]} 44. Kf1 {[%emt 0:02:39]} Qd4 {[%emt 0:05:34]} 45. Ke2 {[%emt 0:02:01]}
Qxe3+ {[%emt 0:04:23]} 46. Kxe3 {[%emt 0:00:03]} f5 {[%emt 0:00:04]} 47. Rd1 {
[%emt 0:01:13]} f4+ {[%emt 0:00:27]} 48. Ke2 {[%emt 0:00:26]} Rxd1 {[%emt 0:01:
03]} 49. Kxd1 {[%emt 0:00:47]} g5 {[%emt 0:04:24]} 50. b4 {[%emt 0:01:03]} h5 {
[%emt 0:01:08]} 51. Ke2 {[%emt 0:05:40]} g4 {[%emt 0:01:10]} 52. hxg4 {[%emt 0:
02:33]} hxg4 {[%emt 0:00:19]} 53. Nd5 {[%emt 0:00:16]} g3 {[%emt 0:02:50]} 54.
Nxc7 {[%emt 0:00:18]} Bb7 {[%emt 0:00:16]} 55. Nd5 {[%emt 0:03:53]} Ke6 {
[%emt 0:00:10]} 56. Nc3 {[%emt 0:00:39]} a5 {[%emt 0:02:05]} 57. b5 {[%emt 0:
01:45]} Kd6 {[%emt 0:00:16]} 58. Na4 {[%emt 0:00:07]} Kc7 {[%emt 0:00:56]} 59.
Nc5 {[%emt 0:02:42]} Bc8 {[%emt 0:00:31]} 60. a4 {[%emt 0:02:49]} Bf5 {[%emt 0:
00:56]} 61. Nd3 {[%emt 0:01:00]} Kd6 {[%emt 0:00:23]} 62. c5+ {[%emt 0:00:07]}
Kd5 {[%emt 0:00:27]} 63. c6 {[%emt 0:00:05]} Kd6 {[%emt 0:01:09]} 64. Nb2 {
[%emt 0:00:38]} Be6 {[%emt 0:00:32]} 65. Kd3 {[%emt 0:00:29]} Bf5+ {[%emt 0:00:
09]} 66. Kc3 {[%emt 0:00:46]} Bh3 {[%emt 0:00:54]} 67. Nc4+ {[%emt 0:00:06]}
Kc7 {[%emt 0:00:25]} 68. Nxe5 {[%emt 0:00:38]} Bxg2 {[%emt 0:00:06]} 69. Kd2 {
[%emt 0:00:41]} Kd6 {[%emt 0:01:03]} 70. b6 {[%emt 0:00:53]} Bf1 {[%emt 0:00:
34]} 71. b7 {[%emt 0:00:23]} Kc7 {[%emt 0:00:04]} 72. Nd7 {[%emt 0:00:12]} 1-0

[Event "71st RUS-ch Superfinal Women 2021"]
[Site "Ufa"]
[Date "2021.10.11"]
[Round "3.1"]
[White "Girya, Olga"]
[Black "Ovod, Evgenija"]
[Result "1/2-1/2"]
[ECO "E06"]
[WhiteElo "2410"]
[BlackElo "2331"]
[Annotator "ChessBase"]
[PlyCount "113"]
[EventDate "2021.10.09"]
[EventType "tourn"]
[EventCountry "RUS"]
[SourceTitle "playchess.com"]
[Source "ChessBase"]
[SourceQuality "1"]
[TimeControl "40/5400+30:1800+30"]

1. d4 {[%emt 0:00:02]} d5 {[%emt 0:00:05]} 2. c4 {[%emt 0:00:09]} e6 {[%emt 0:
00:06]} 3. Nf3 {[%emt 0:00:15]} Nf6 {[%emt 0:00:07]} 4. g3 {[%emt 0:00:09]} Be7
{[%emt 0:00:12]} 5. Bg2 {[%emt 0:00:50]} O-O {[%emt 0:00:08]} 6. Qc2 {[%emt 0:
06:41]} c5 {[%emt 0:00:06]} 7. dxc5 {[%emt 0:00:16]} d4 {[%emt 0:00:13]} 8. O-O
{[%emt 0:02:12]} Nc6 {[%emt 0:00:11]} 9. Bg5 {[%emt 0:01:22]} Bxc5 {[%emt 0:06:
24]} 10. Nbd2 {[%emt 0:01:39]} e5 {[%emt 0:02:02]} 11. a3 {[%emt 0:30:55]} a5 {
[%emt 0:03:07]} 12. Bxf6 {[%emt 0:02:21]} Qxf6 {[%emt 0:00:20]} 13. Ne4 {
[%emt 0:00:12]} Qe7 {[%emt 0:00:06]} 14. Nxc5 {[%emt 0:01:20]} Qxc5 {[%emt 0:
00:04]} 15. Ng5 {[%emt 0:04:57]} g6 {[%emt 0:00:12]} 16. Bd5 {[%emt 0:03:12]}
Kg7 {[%emt 0:18:59]} 17. Qd2 {[%emt 0:04:58]} h6 {[%emt 0:25:25]} 18. Ne4 {
[%emt 0:00:57]} Qe7 {[%emt 0:00:07]} 19. f4 {[%emt 0:07:27]} Bh3 {[%emt 0:01:
35]} 20. Rfe1 {[%emt 0:04:13]} Rfd8 {[%emt 0:09:00]} 21. fxe5 {[%emt 0:03:16]}
Qxe5 {[%emt 0:00:17]} 22. Qf4 {[%emt 0:02:04]} Qxf4 {[%emt 0:03:07]} 23. gxf4 {
[%emt 0:02:06]} Ne7 {[%emt 0:05:55]} 24. Bxb7 {[%emt 0:01:20]} Rab8 {[%emt 0:
00:50]} 25. Nc5 {[%emt 0:00:54]} Bc8 {[%emt 0:00:10]} 26. Bf3 {[%emt 0:04:57]}
Rxb2 {[%emt 0:00:33]} 27. Reb1 {[%emt 0:00:44]} Rc2 {[%emt 0:03:20]} 28. Rc1 {
[%emt 0:00:01]} Rb2 {[%emt 0:07:21]} 29. Rcb1 {[%emt 0:00:41]} Rc2 {[%emt 0:00:
17]} 30. Rc1 {[%emt 0:00:49]} Rb2 {[%emt 0:00:10]} 31. Nd3 {[%emt 0:07:20]} Rb3
{[%emt 0:01:38]} 32. a4 {[%emt 0:00:29]} Bd7 {[%emt 0:07:00]} 33. Nc5 {[%emt 0:
00:38]} Rb4 {[%emt 0:00:11]} 34. Rab1 {[%emt 0:01:22]} Bc6 {[%emt 0:03:28]} 35.
Rxb4 {[%emt 0:00:10]} axb4 {[%emt 0:00:02]} 36. Kf2 {[%emt 0:03:37]} Ra8 {
[%emt 0:00:27]} 37. Nb3 {[%emt 0:01:43]} Rxa4 {[%emt 0:03:14]} 38. Nxd4 {
[%emt 0:00:23]} Bxf3 {[%emt 0:00:21]} 39. Kxf3 {[%emt 0:00:05]} Ra3+ {[%emt 0:
00:10]} 40. e3 {[%emt 0:00:00]} Nf5 {[%emt 0:00:00]} 41. Nxf5+ {[%emt 0:03:06]}
gxf5 {[%emt 0:02:29]} 42. Rb1 {[%emt 0:02:49]} b3 {[%emt 0:13:48]} 43. Ke2 {
[%emt 0:00:17]} Kf6 {[%emt 0:00:48]} 44. Kd2 {[%emt 0:04:42]} Ra2+ {[%emt 0:01:
07]} 45. Kc3 {[%emt 0:00:36]} Rxh2 {[%emt 0:01:47]} 46. Rxb3 {[%emt 0:00:09]}
h5 {[%emt 0:00:23]} 47. Rb6+ {[%emt 0:02:03]} Ke7 {[%emt 0:00:22]} 48. Kd4 {
[%emt 0:02:10]} f6 {[%emt 0:03:02]} 49. Rb7+ {[%emt 0:00:59]} Ke6 {[%emt 0:00:
41]} 50. Kc5 {[%emt 0:03:49]} h4 {[%emt 0:00:22]} 51. Rh7 {[%emt 0:03:22]} h3 {
[%emt 0:00:28]} 52. Kc6 {[%emt 0:06:24]} Rc2 {[%emt 0:00:38]} 53. c5 {[%emt 0:
00:40]} h2 {[%emt 0:00:16]} 54. Rh8 {[%emt 0:01:03]} Rb2 {[%emt 0:04:11]} 55.
Rh7 {[%emt 0:01:51]} Rc2 {[%emt 0:00:10]} 56. Rh5 {[%emt 0:01:28]} Rb2 {
[%emt 0:01:07]} 57. Rh7 {[%emt 0:00:37]} 1/2-1/2

[Event "71st RUS-ch Superfinal Women 2021"]
[Site "Ufa"]
[Date "2021.10.11"]
[Round "3.2"]
[White "Guseva, Marina"]
[Black "Shuvalova, Polina"]
[Result "0-1"]
[ECO "D28"]
[WhiteElo "2394"]
[BlackElo "2509"]
[Annotator "ChessBase"]
[PlyCount "76"]
[EventDate "2021.10.09"]
[EventType "tourn"]
[EventCountry "RUS"]
[SourceTitle "playchess.com"]
[Source "ChessBase"]
[SourceQuality "1"]
[TimeControl "40/5400+30:1800+30"]

1. d4 {[%emt 0:00:02]} d5 {[%emt 0:00:04]} 2. c4 {[%emt 0:00:05]} e6 {[%emt 0:
00:06]} 3. Nf3 {[%emt 0:00:04]} dxc4 {[%emt 0:00:16]} 4. e3 {[%emt 0:07:46]}
Nf6 {[%emt 0:00:06]} 5. Bxc4 {[%emt 0:00:05]} c5 {[%emt 0:00:04]} 6. O-O {
[%emt 0:00:03]} a6 {[%emt 0:00:02]} 7. Qe2 {[%emt 0:05:47]} b5 {[%emt 0:02:23]}
8. Bd3 {[%emt 0:00:05]} Bb7 {[%emt 0:02:15]} 9. dxc5 {[%emt 0:03:18]} Nc6 {
[%emt 0:02:55]} 10. a3 {[%emt 0:24:08]} Bxc5 {[%emt 0:01:56]} 11. b4 {[%emt 0:
00:05]} Bb6 {[%emt 0:05:56]} 12. Bb2 {[%emt 0:02:39]} O-O {[%emt 0:00:39]} 13.
Nbd2 {[%emt 0:01:37]} Qe7 {[%emt 0:22:42]} 14. Rac1 {[%emt 0:00:19]} Rac8 {
[%emt 0:04:53]} 15. Ng5 {[%emt 0:10:23]} Rfd8 {[%emt 0:05:45]} 16. Nb3 {
[%emt 0:13:36]} Nb8 {[%emt 0:05:51]} 17. Rxc8 {[%emt 0:01:53]} Rxc8 {[%emt 0:
03:28]} 18. Bxf6 {[%emt 0:04:04]} gxf6 {[%emt 0:04:08]} 19. Qh5 {[%emt 0:02:46]
} Kf8 {[%emt 0:00:25]} 20. Qxh7 {[%emt 0:07:48]} Qd7 {[%emt 0:02:12]} 21. Nf3 {
[%emt 0:07:46]} Bxf3 {[%emt 0:09:58]} 22. gxf3 {[%emt 0:00:05]} Ke7 {[%emt 0:
00:07]} 23. Rc1 {[%emt 0:05:29]} Rf8 {[%emt 0:09:59]} 24. Nc5 {[%emt 0:01:21]}
Bxc5 {[%emt 0:07:39]} 25. Rxc5 {[%emt 0:00:22]} Rd8 {[%emt 0:00:31]} 26. Be4 {
[%emt 0:01:00]} Qd6 {[%emt 0:03:00]} 27. Kg2 {[%emt 0:00:36]} Nd7 {[%emt 0:00:
43]} 28. Rc6 {[%emt 0:00:42]} Qb8 {[%emt 0:00:52]} 29. Qh4 {[%emt 0:00:32]} Ne5
{[%emt 0:03:25]} 30. Rxa6 {[%emt 0:00:26]} Rh8 {[%emt 0:01:53]} 31. Bh7 {
[%emt 0:00:33]} Qb7 {[%emt 0:00:19]} 32. Ra5 {[%emt 0:00:19]} Qxf3+ {[%emt 0:
00:15]} 33. Kf1 {[%emt 0:00:13]} Qd1+ {[%emt 0:00:05]} 34. Kg2 {[%emt 0:00:05]}
Qf3+ {[%emt 0:00:03]} 35. Kf1 {[%emt 0:00:03]} Rc8 {[%emt 0:01:20]} 36. Ra7+ {
[%emt 0:00:03]} Nd7 {[%emt 0:00:23]} 37. Rxd7+ {[%emt 0:00:03]} Kxd7 {[%emt 0:
00:05]} 38. Qd4+ {[%emt 0:00:03]} Ke7 {[%emt 0:00:30]} 0-1

[Event "71st RUS-ch Superfinal Women 2021"]
[Site "Ufa"]
[Date "2021.10.11"]
[Round "3.3"]
[White "Kashlinskaya, Alina"]
[Black "Gunina, Valentina"]
[Result "0-1"]
[ECO "D17"]
[WhiteElo "2493"]
[BlackElo "2462"]
[Annotator "ChessBase"]
[PlyCount "66"]
[EventDate "2021.10.09"]
[EventType "tourn"]
[EventCountry "RUS"]
[SourceTitle "playchess.com"]
[Source "ChessBase"]
[SourceQuality "1"]
[TimeControl "40/5400+30:1800+30"]

1. d4 {[%emt 0:00:03]} d5 {[%emt 0:00:08]} 2. c4 {[%emt 0:00:08]} c6 {[%emt 0:
00:07]} 3. Nf3 {[%emt 0:00:04]} Nf6 {[%emt 0:00:08]} 4. Nc3 {[%emt 0:00:06]}
dxc4 {[%emt 0:00:13]} 5. a4 {[%emt 0:00:08]} Bf5 {[%emt 0:00:13]} 6. Nh4 {
[%emt 0:00:15]} e6 {[%emt 0:01:31]} 7. Nxf5 {[%emt 0:00:17]} exf5 {[%emt 0:00:
05]} 8. e3 {[%emt 0:00:07]} Bb4 {[%emt 0:06:05]} 9. Bxc4 {[%emt 0:00:30]} O-O {
[%emt 0:00:06]} 10. O-O {[%emt 0:00:08]} Nbd7 {[%emt 0:01:07]} 11. h3 {[%emt 0:
00:14]} a5 {[%emt 0:01:53]} 12. Qf3 {[%emt 0:00:20]} g6 {[%emt 0:01:20]} 13. g4
{[%emt 0:00:32]} fxg4 {[%emt 0:14:14]} 14. hxg4 {[%emt 0:00:14]} Qe7 {[%emt 0:
00:32]} 15. Kg2 {[%emt 0:08:01]} Rfe8 {[%emt 0:10:38]} 16. Rh1 {[%emt 0:04:00]}
Nf8 {[%emt 0:04:50]} 17. g5 {[%emt 0:23:22]} Nh5 {[%emt 0:03:43]} 18. Kf1 {
[%emt 0:11:18]} Rad8 {[%emt 0:26:15]} 19. Rxh5 {[%emt 0:08:24]} Bxc3 {[%emt 0:
10:07]} 20. bxc3 {[%emt 0:16:39]} gxh5 {[%emt 0:00:05]} 21. Ba3 {[%emt 0:00:04]
} Qd7 {[%emt 0:00:56]} 22. Rb1 {[%emt 0:02:29]} Ng6 {[%emt 0:02:46]} 23. Ba2 {
[%emt 0:04:13]} b5 {[%emt 0:02:11]} 24. axb5 {[%emt 0:04:29]} cxb5 {[%emt 0:00:
01]} 25. Bc5 {[%emt 0:00:15]} Rc8 {[%emt 0:01:06]} 26. Qxh5 {[%emt 0:03:30]}
Qf5 {[%emt 0:01:18]} 27. Rxb5 {[%emt 0:05:08]} Rxe3 {[%emt 0:00:45]} 28. Rb7 {
[%emt 0:02:07]} Qd3+ {[%emt 0:04:10]} 29. Kg1 {[%emt 0:00:01]} Re1+ {[%emt 0:
00:36]} 30. Kh2 {[%emt 0:00:03]} Qe4 {[%emt 0:01:40]} 31. Bxf7+ {[%emt 0:00:30]
} Kh8 {[%emt 0:00:01]} 32. Bd5 {[%emt 0:00:58]} Rh1+ {[%emt 0:00:36]} 33. Kg3 {
[%emt 0:00:03]} Qf4+ {[%emt 0:00:08]} 0-1

[Event "71st RUS-ch Superfinal Women 2021"]
[Site "Ufa"]
[Date "2021.10.11"]
[Round "3.5"]
[White "Bivol, Alina"]
[Black "Galliamova, Alisa"]
[Result "0-1"]
[ECO "C80"]
[WhiteElo "2392"]
[BlackElo "2421"]
[Annotator "NA"]
[PlyCount "80"]
[EventDate "2021.10.09"]
[EventType "tourn"]
[EventCountry "RUS"]
[SourceTitle "playchess.com"]
[Source "ChessBase"]
[SourceQuality "1"]
[TimeControl "40/5400+30:1800+30"]

{[%evp 15,74,18,42,13,25,1,31,10,5,0,0,0,7,6,8,-2,-14,-31,-16,-23,-27,-58,-41,
-42,-42,-46,-45,-50,-73,-70,32767,32767,32767,32767,-66,-88,-62,32767,32767,
32767,32767,-165,-171,-202,-221,-218,-227,-231,-256,-256,32767,32767,32767,
-337,-312,-364,-360,-412,-438,32767,-438]} 1. e4 {[%emt 0:00:09]} e5 {[%emt 0:
00:05]} 2. Nf3 {[%emt 0:00:16]} Nc6 {[%emt 0:00:05]} 3. Bb5 {[%emt 0:00:23]} a6
{[%emt 0:01:45]} 4. Ba4 {[%emt 0:00:06]} Nf6 {[%emt 0:00:18]} 5. O-O {[%emt 0:
00:20]} Nxe4 {[%emt 0:00:49]} 6. Re1 {[%emt 0:02:37]} Nc5 {[%emt 0:00:38]} 7.
Bxc6 {[%emt 0:01:29]} dxc6 {[%emt 0:00:27]} 8. Nxe5 {[%emt 0:00:53]} Be7 {
[%emt 0:01:08]} 9. d4 {[%emt 0:05:40]} Ne6 {[%emt 0:00:07]} 10. c3 {[%emt 0:00:
17]} O-O {[%emt 0:00:29]} 11. Be3 {[%emt 0:02:29]} f6 {[%emt 0:06:04]} 12. Nd3
{[%emt 0:00:19]} Re8 {[%emt 0:03:42]} 13. Nd2 {[%emt 0:02:01]} a5 {[%emt 0:14:
36]} 14. Qf3 {[%emt 0:05:46]} a4 {[%emt 0:01:19]} 15. Rad1 {[%emt 0:03:29]} Qd5
{[%emt 0:05:44]} 16. c4 {[%emt 0:12:13]} Qxf3 {[%emt 0:02:34]} 17. Nxf3 {
[%emt 0:00:13]} Nf8 {[%emt 0:12:28]} 18. Bf4 {[%emt 0:14:19]} Be6 {[%emt 0:02:
45]} 19. Rc1 {[%emt 0:00:56]} Bf5 {[%emt 0:05:09]} 20. Red1 {[%emt 0:06:56]}
Ne6 {[%emt 0:04:05]} 21. Be3 {[%emt 0:00:23]} Rad8 {[%emt 0:07:28]} 22. Nf4 {
[%emt 0:06:52]} g5 {[%emt 0:07:01]} 23. Nxe6 {[%emt 0:00:56]} Bxe6 {[%emt 0:00:
05]} 24. h3 {[%emt 0:00:54]} b6 {[%emt 0:06:25]} 25. Nd2 {[%emt 0:04:51]} f5 {
[%emt 0:01:53]} 26. f4 {[%emt 0:06:27]} gxf4 {[%emt 0:02:26]} 27. Bxf4 {
[%emt 0:00:04]} Rxd4 {[%emt 0:01:02]} 28. Bxc7 {[%emt 0:07:14]} Bb4 {[%emt 0:
00:58]} 29. Nf3 {[%emt 0:02:13]} Rxd1+ {[%emt 0:00:32]} ({Less strong is} 29...
Rxc4 30. Bxb6 Rxc1 31. Rxc1 $15) 30. Rxd1 {[%emt 0:00:04]} Bc5+ {[%emt 0:00:07]
} ({Don't play} 30... Bxc4 31. Bxb6 Bxa2 32. Rd7 $17) 31. Kh1 {[%emt 0:02:15]}
Bxc4 {[%emt 0:02:42]} 32. Ne5 {[%emt 0:03:34]} Bxa2 {[%emt 0:05:10]} 33. Nd7 {
[%emt 0:01:16]} Re7 {[%emt 0:03:54]} 34. Bf4 $2 {[%emt 0:01:21]} (34. Nxc5 {
was worth a try.} bxc5 35. Bf4) 34... Bf2 {[%emt 0:00:51]} 35. Rd6 {[%emt 0:01:
16]} Re6 {[%emt 0:01:18]} 36. Rd3 {[%emt 0:01:20]} b5 {[%emt 0:00:30]} 37. Be5
{[%emt 0:02:03]} Bh4 $19 {[%emt 0:00:55]} 38. Rd4 {[%emt 0:04:00]} Be7 {
[%emt 0:00:25]} 39. g4 {[%emt 0:00:40]} Bd5+ {[%emt 0:00:37]} 40. Kh2 {[%emt 0:
00:00]} Rxe5 {[%emt 0:00:00]} 0-1

[Event "71st RUS-ch Superfinal Women 2021"]
[Site "Ufa"]
[Date "2021.10.11"]
[Round "3.6"]
[White "Pogonina, Natalija"]
[Black "Voit, Daria"]
[Result "1/2-1/2"]
[ECO "D38"]
[WhiteElo "2467"]
[BlackElo "2357"]
[Annotator "ChessBase"]
[PlyCount "83"]
[EventDate "2021.10.09"]
[EventType "tourn"]
[EventCountry "RUS"]
[SourceTitle "playchess.com"]
[Source "ChessBase"]
[SourceQuality "1"]
[TimeControl "40/5400+30:1800+30"]

1. d4 {[%emt 0:00:04]} Nf6 {[%emt 0:00:07]} 2. c4 {[%emt 0:00:39]} e6 {[%emt 0:
00:03]} 3. Nf3 {[%emt 0:00:17]} d5 {[%emt 0:00:05]} 4. Nc3 {[%emt 0:01:00]} Bb4
{[%emt 0:00:31]} 5. e3 {[%emt 0:02:19]} O-O {[%emt 0:00:41]} 6. a3 {[%emt 0:02:
46]} Bxc3+ {[%emt 0:00:55]} 7. bxc3 {[%emt 0:00:04]} c5 {[%emt 0:09:35]} 8. a4
{[%emt 0:05:15]} Qa5 {[%emt 0:09:18]} 9. Bd2 {[%emt 0:02:20]} Qc7 {[%emt 0:05:
16]} 10. Qc2 {[%emt 0:13:46]} b6 {[%emt 0:18:37]} 11. cxd5 {[%emt 0:10:31]}
exd5 {[%emt 0:01:13]} 12. a5 {[%emt 0:00:28]} c4 {[%emt 0:10:48]} 13. axb6 {
[%emt 0:22:26]} Qxb6 {[%emt 0:00:05]} 14. Bc1 {[%emt 0:00:05]} Nc6 {[%emt 0:02:
51]} 15. Nd2 {[%emt 0:01:18]} Re8 {[%emt 0:01:59]} 16. Be2 {[%emt 0:03:19]} Qc7
{[%emt 0:05:15]} 17. O-O {[%emt 0:05:32]} Bd7 {[%emt 0:06:31]} 18. e4 {[%emt 0:
05:40]} dxe4 {[%emt 0:11:36]} 19. Nxc4 {[%emt 0:00:27]} Bg4 {[%emt 0:02:15]}
20. h3 {[%emt 0:03:59]} Bxe2 {[%emt 0:00:17]} 21. Qxe2 {[%emt 0:00:03]} Nd5 {
[%emt 0:02:24]} 22. Bd2 {[%emt 0:00:47]} Re6 {[%emt 0:03:04]} 23. Rfb1 {
[%emt 0:05:08]} Rc8 {[%emt 0:01:20]} 24. Rb5 {[%emt 0:01:07]} Nce7 {[%emt 0:02:
43]} 25. Rc5 {[%emt 0:00:32]} Rc6 {[%emt 0:01:23]} 26. Rxc6 {[%emt 0:02:06]}
Qxc6 {[%emt 0:00:05]} 27. Ne5 {[%emt 0:00:46]} Nxc3 {[%emt 0:01:21]} 28. Qe1 {
[%emt 0:04:22]} Qc7 {[%emt 0:01:21]} 29. Bxc3 {[%emt 0:00:10]} Qxc3 {[%emt 0:
00:27]} 30. Qxc3 {[%emt 0:00:11]} Rxc3 {[%emt 0:00:02]} 31. Rxa7 {[%emt 0:00:
12]} Kf8 {[%emt 0:00:28]} 32. d5 {[%emt 0:03:36]} f6 {[%emt 0:02:13]} 33. Nd7+
{[%emt 0:02:10]} Ke8 {[%emt 0:00:06]} 34. Nb6 {[%emt 0:01:26]} Rd3 {[%emt 0:01:
02]} 35. Ra8+ {[%emt 0:01:51]} Kf7 {[%emt 0:00:02]} 36. Rd8 {[%emt 0:00:21]} g5
{[%emt 0:00:57]} 37. g4 {[%emt 0:00:48]} h6 {[%emt 0:00:34]} 38. Rd7 {[%emt 0:
00:52]} Ke8 {[%emt 0:00:15]} 39. Rd6 {[%emt 0:00:31]} Kf7 {[%emt 0:00:10]} 40.
Rd7 {[%emt 0:00:00]} Ke8 {[%emt 0:00:00]} 41. Rd6 {[%emt 0:08:33]} Kf7 {
[%emt 0:05:01]} 42. Rd7 {[%emt 0:01:20]} 1/2-1/2